bitfinex/quotes_SOLUSD_20251212
["timestamp","ask_amount","ask_price","bid_price","bid_amount"]
[1765563412979,7.52627426,132.87,132.83,7.56710437]
[1765563413276,8.02627426,132.87,132.82,15.80710437]
[1765563413468,8.02627426,132.87,132.82,16.52710437]
[1765563413844,7.52627426,132.87,132.83,0.72]
[1765563414661,7.52627426,132.87,132.83,8.28710437]
[1765563415563,7.52627426,132.87,132.83,0.72]
[1765563415948,0.5,132.86,132.82,8.24]
[1765563416243,26.34165771,132.87,132.82,0.72]
[1765563416473,14.29260961,132.86,132.83,8.24]
[1765563416771,9.30994492,132.86,132.83,8.24]
[1765563417072,26.34165771,132.87,132.83,8.24]
[1765563417276,8.80994492,132.86,132.83,8.24]
[1765563417850,7.52728641,132.85,132.83,8.24]
[1765563418150,8.80994492,132.88,132.84,0.72]
[1765563418356,21.32236379,132.88,132.84,0.72]
[1765563418553,16.33568583,132.88,132.84,0.72]
[1765563419665,4.98879824,132.87,132.84,0.72]
[1765563419860,7.52728641,132.85,132.83,8.24]
[1765563420252,7.52684072,132.86,132.83,8.24]
[1765563420880,7.52632246,132.87,132.83,16.48840813]
[1765563421047,12.51604141,132.87,132.84,0.72]
[1765563421251,8.80994492,132.86,132.75,16.37704929]
[1765563421450,7.56710437,132.84,132.77,7.56710437]
[1765563421651,12.55874378,132.84,132.78,0.72]
[1765563421873,12.51984284,132.84,132.79,15.09761203]
[1765563422073,7.52820343,132.84,132.8,8.24]
[1765563422274,8.24,132.88,132.81,7.85142751]
[1765563422581,4.99346848,132.87,132.82,0.72]
[1765563422774,0.5,132.86,132.8,29.57419557]
[1765563422958,12.56057285,132.87,132.81,0.72]
[1765563423379,4.99346848,132.87,132.81,8.28710437]
[1765563423682,4.99346848,132.87,132.84,7.56710437]
[1765563424007,7.52388834,132.91,132.86,7.56710437]
[1765563424306,7.52275633,132.93,132.87,7.56710437]
[1765563424460,12.51614995,132.93,132.87,8.28710437]
[1765563424782,18.8031375,132.96,132.88,14.05141434]
[1765563424953,4.99222548,132.95,132.89,8.24]
[1765563425153,4.99222548,132.95,132.9,8.28710437]
[1765563425655,16.33173096,132.95,132.91,0.72]
[1765563426256,7.52114318,132.96,132.92,7.56710437]
[1765563426464,83.4068233,133.02,132.91,0.72]
[1765563426465,0.1,133.01,132.93,8.24]
[1765563426664,0.1,133.01,132.96,7.56710437]
[1765563426979,7.51879699,133.0,132.94,8.42926594]
[1765563427200,7.56710437,132.98,132.9,8.28710437]
[1765563427356,20.79792222,132.99,132.92,7.56710437]
[1765563427560,4.99081785,132.98,132.93,0.72]
[1765563427881,7.52049334,132.97,132.93,0.72]
[1765563428081,12.51092409,132.98,132.93,8.2427453]
[1765563428252,7.52010624,132.98,132.93,15.80984967]
[1765563428457,7.52010624,132.98,132.93,7.5227453]
[1765563428654,7.52010624,132.98,132.93,0.72]
[1765563428863,7.52010624,132.98,132.94,0.72]
[1765563429070,7.52010624,132.98,132.94,8.28710437]
[1765563429383,0.1,133.01,132.97,7.56710437]
[1765563429684,0.1,133.01,132.98,7.56710437]
[1765563429867,0.1,133.01,132.98,15.08677225]
[1765563430075,0.1,133.01,132.99,0.72]
[1765563430577,0.1,133.01,132.98,7.56710437]
[1765563430783,0.1,133.01,132.98,8.28710437]
[1765563431182,0.1,133.01,132.97,7.56710437]
[1765563431482,0.1,133.01,132.96,20.61419557]
[1765563431687,0.1,133.01,132.97,15.807531]
[1765563431869,0.1,133.01,132.98,12.28806298]
[1765563432068,0.1,133.01,132.98,13.00806298]
[1765563432268,0.1,133.01,132.96,12.28806298]
[1765563432463,0.1,133.01,132.97,0.72]
[1765563433270,0.1,133.01,132.97,13.00806298]
[1765563433466,9.40994492,133.01,132.95,20.52806298]
[1765563433774,9.40994492,133.01,132.92,8.96]
[1765563433775,7.52049334,132.97,132.92,8.96]
[1765563434090,26.3217267,132.97,132.92,8.96]
[1765563434279,26.8217267,132.97,132.92,8.96]
[1765563434478,7.52049334,132.97,132.93,0.72]
[1765563434678,7.52049334,132.97,132.93,13.00806298]
[1765563434878,7.52049334,132.97,132.93,0.72]
[1765563435073,7.52049334,132.97,132.92,20.52806298]
[1765563435387,7.52049334,132.97,132.93,13.00806298]
[1765563435594,15.75980707,132.99,132.93,13.00806298]
[1765563435765,26.41417368,133.01,132.95,19.80931036]
[1765563436166,26.41417368,133.01,132.95,20.52931036]
[1765563437301,12.28806298,132.99,132.92,21.24806298]
[1765563437555,9.30994492,133.0,132.94,12.28806298]
[1765563437715,21.5980079,133.0,132.94,7.5221032]
[1765563437890,7.51936235,132.99,132.94,7.5221032]
[1765563438502,8.01936235,132.99,132.94,0.72]
[1765563439167,26.81776824,132.99,132.94,0.72]
[1765563439368,39.10583122,132.99,132.94,0.72]
[1765563439564,21.5980079,132.98,132.92,8.96]
[1765563439770,26.33162803,132.92,132.85,8.24691718]
[1765563439988,26.33162803,132.92,132.86,13.00806298]
[1765563440190,7.52332229,132.92,132.88,12.28806298]
[1765563440494,7.52332229,132.92,132.87,12.96806298]
[1765563440680,7.52292709,132.93,132.87,12.96806298]
[1765563440879,7.52292709,132.93,132.88,0.68]
[1765563441270,38.61788091,132.93,132.88,0.68]
[1765563441469,7.52292709,132.93,132.88,0.68]
[1765563441791,7.52162467,132.95,132.9,7.52445447]
[1765563442098,7.52162467,132.95,132.9,19.81251745]
[1765563442276,39.89958751,132.97,132.91,13.25238612]
[1765563442277,7.52097469,132.97,132.91,13.25238612]
[1765563442483,7.52097469,132.97,132.92,0.68]
[1765563443778,7.52162467,132.95,132.9,8.20445447]
[1765563443978,7.52162467,132.95,132.91,0.68]
[1765563444992,26.3217267,132.97,132.91,8.20388804]
[1765563446086,26.3217267,132.97,132.91,0.68]
[1765563446278,26.3217267,132.97,132.9,19.82639069]
[1765563446279,26.11651517,132.96,132.9,8.24]
[1765563446479,21.1119423,132.96,132.9,8.92]
[1765563447002,7.52162467,132.95,132.9,8.92]
[1765563447205,12.30199738,132.93,132.87,7.52575176]
[1765563447376,21.1119423,132.93,132.87,8.20575176]
[1765563448308,7.52332229,132.92,132.87,8.20575176]
[1765563448677,7.52332229,132.92,132.88,0.68]
[1765563449180,7.52332229,132.92,132.88,12.98199738]
[1765563449710,7.52332229,132.92,132.89,0.68]
[1765563450210,26.33020482,132.93,132.89,0.68]
[1765563450997,26.83020482,132.93,132.87,29.03242671]
[1765563451199,26.83020482,132.93,132.87,8.92]
[1765563451589,13.0470912,132.9,132.84,0.68]
[1765563451793,13.0470912,132.9,132.84,20.54199738]
[1765563451996,13.0470912,132.9,132.84,8.92]
[1765563452313,7.52502069,132.89,132.84,21.22199738]
[1765563452703,7.52502069,132.89,132.85,0.68]
[1765563452927,7.52458315,132.9,132.86,12.30199738]
[1765563453121,26.83571934,132.9,132.85,0.68]
[1765563453535,39.13771672,132.9,132.85,0.68]
[1765563453915,9.30994492,132.89,132.84,8.24]
[1765563454119,7.52615338,132.87,132.83,0.68]
[1765563454314,12.54389328,132.87,132.83,0.68]
[1765563455927,14.32768482,132.86,132.82,8.24]
[1765563456247,12.30199738,132.83,132.76,20.51387206]
[1765563456406,8.80994492,132.84,132.78,19.83324146]
[1765563456747,13.83362023,132.84,132.78,19.83324146]
[1765563456906,13.83362023,132.84,132.78,0.68]
[1765563457636,26.63561761,132.84,132.78,0.68]
[1765563457812,5.02367531,132.83,132.78,0.68]
[1765563458021,7.52898659,132.82,132.78,20.51314017]
[1765563458419,7.52898659,132.82,132.79,0.68]
[1765563458820,7.52898659,132.82,132.77,0.68]
[1765563459132,7.52898659,132.82,132.78,0.68]
[1765563459333,7.52856444,132.83,132.78,8.21111391]
[1765563459841,8.24,132.85,132.79,14.01141434]
[1765563460041,12.54688511,132.85,132.8,15.77012048]
[1765563460260,12.54688511,132.85,132.8,16.45012048]
[1765563460427,12.54688511,132.85,132.81,0.68]
[1765563461026,7.52744455,132.85,132.81,0.68]
[1765563461656,19.82944193,132.85,132.81,0.68]
[1765563463254,7.52744455,132.85,132.81,0.68]
[1765563463457,19.82944193,132.85,132.81,0.68]
[1765563463753,7.52649793,132.87,132.82,12.30199738]
[1765563463971,7.52649793,132.87,132.83,8.92]
[1765563464473,8.02649793,132.87,132.83,8.24]
[1765563464677,12.30199738,132.84,132.77,0.68]
[1765563464870,21.1119423,132.79,132.73,0.68]
[1765563465068,12.30199738,132.75,132.7,0.68]
[1765563465255,8.80994492,132.74,132.7,0.68]
[1765563465453,21.1119423,132.74,132.67,20.54199738]
[1765563465653,8.80994492,132.72,132.66,0.2]
[1765563465858,20.54199738,132.71,132.66,0.88]
[1765563466466,12.30199738,132.7,132.66,0.88]
[1765563466643,12.30199738,132.69,132.66,0.2]
[1765563466867,12.80199738,132.69,132.66,0.2]
[1765563467170,8.24,132.68,132.66,0.2]
[1765563467370,8.24,132.68,132.66,0.88]
[1765563467601,8.80994492,132.7,132.66,0.88]
[1765563467602,17.04994492,132.7,132.66,0.88]
[1765563467772,7.53636295,132.69,132.66,0.2]
[1765563467949,17.04994492,132.7,132.66,0.88]
[1765563468268,15.7759484,132.7,132.66,0.88]
[1765563468444,28.07794578,132.7,132.66,0.2]
[1765563468647,12.30199738,132.69,132.66,0.2]
[1765563468872,12.30199738,132.69,132.66,0.1]
[1765563468873,21.1119423,132.67,132.66,0.1]
[1765563469073,104.3519423,132.67,132.66,0.1]
[1765563469369,104.7519423,132.67,132.66,0.1]
[1765563469675,112.28944135,132.67,132.66,0.1]
[1765563469859,37.28944135,132.67,132.66,0.1]
[1765563470059,24.58744397,132.67,132.66,0.1]
[1765563470660,8.26,132.69,132.66,0.1]
[1765563471277,8.26,132.69,132.66,0.76]
[1765563471797,12.30199738,132.68,132.66,0.1]
[1765563472348,29.3719423,132.69,132.66,0.1]
[1765563472549,29.7719423,132.69,132.66,0.1]
[1765563472752,20.56199738,132.69,132.66,0.1]
[1765563472985,20.56199738,132.69,132.57,7.54312022]
[1765563472986,96.1119423,132.67,132.57,7.54312022]
[1765563473197,12.30199738,132.62,132.57,0.66]
[1765563473353,8.26,132.61,132.57,0.66]
[1765563473553,8.26,132.61,132.57,8.20313881]
[1765563473959,8.26,132.61,132.58,0.66]
[1765563475686,8.80994492,132.6,132.54,0.86]
[1765563475863,21.1119423,132.57,132.54,0.2]
[1765563476070,20.56199738,132.56,132.54,0.2]
[1765563476277,12.30199738,132.58,132.55,0.66]
[1765563476451,8.26,132.57,132.54,0.2]
[1765563476853,8.26,132.57,132.54,0.86]
[1765563477450,8.26,132.57,132.54,8.40486683]
[1765563477991,15.80334582,132.57,132.54,0.86]
[1765563478282,28.1053432,132.57,132.54,0.86]
[1765563479660,28.1053432,132.57,132.54,0.2]
[1765563479870,21.85703612,132.53,132.52,0.2]
[1765563480069,83.80994492,132.52,132.51,1e-08]
[1765563480276,8.80994492,132.49,132.44,0.2]
[1765563480461,12.30199738,132.46,132.44,0.2]
[1765563480767,8.26,132.48,132.44,0.2]
[1765563480768,20.65686496,132.45,132.44,0.2]
[1765563480976,8.26,132.45,132.44,0.2]
[1765563481162,8.26,132.48,132.45,0.66]
[1765563481368,20.65686496,132.48,132.45,0.66]
[1765563481561,8.26,132.48,132.45,0.66]
[1765563481769,8.26,132.49,132.45,8.20983954]
[1765563482078,32.99136892,132.5,132.45,8.20983954]
[1765563482079,20.65686496,132.5,132.45,8.20983954]
[1765563482259,20.65686496,132.5,132.46,0.66]
[1765563483376,12.39686496,132.49,132.46,0.66]
[1765563483757,12.39686496,132.53,132.47,7.54887899]
[1765563483981,12.39686496,132.53,132.48,0.66]
[1765563484181,28.20176853,132.54,132.48,0.66]
[1765563484358,15.80490357,132.54,132.48,0.66]
[1765563484755,8.26,132.54,132.48,26.3882793]
[1765563484954,8.26,132.54,132.49,12.39686496]
[1765563485196,8.80994492,132.57,132.5,12.39686496]
[1765563485361,8.26,132.57,132.5,13.05686496]
[1765563485666,8.26,132.57,132.51,26.3882793]
[1765563485875,8.26,132.57,132.52,7.54603078]
[1765563486072,8.26,132.57,132.52,27.07110774]
[1765563486369,20.65686496,132.57,132.53,0.66]
[1765563486575,28.20020455,132.57,132.53,0.66]
[1765563486889,15.80333959,132.57,132.53,0.66]
[1765563487063,28.20020455,132.57,132.51,13.0470912]
[1765563487269,12.39686496,132.56,132.51,0.66]
[1765563487966,7.54432289,132.55,132.51,8.20652154]
[1765563488165,7.54432289,132.55,132.51,0.66]
[1765563489015,8.80994492,132.51,132.45,0.66]
[1765563489169,12.39686496,132.5,132.45,0.66]
[1765563489370,12.39686496,132.48,132.42,0.86]
[1765563489573,8.26,132.48,132.44,8.41016547]
[1765563489762,8.80994492,132.51,132.45,7.54975773]
[1765563489763,12.39686496,132.5,132.45,7.54975773]
[1765563490097,19.94431201,132.5,132.45,8.20975773]
[1765563490273,19.94431201,132.5,132.46,0.66]
[1765563490471,31.91245641,132.52,132.46,0.66]
[1765563490472,8.26,132.52,132.46,26.3882793]
[1765563490873,8.26,132.52,132.47,0.66]
[1765563491085,28.20188614,132.54,132.48,0.28432314]
[1765563491381,15.80502118,132.54,132.48,0.28432314]
[1765563491585,28.20188614,132.54,132.49,0.66]
[1765563491884,12.39686496,132.53,132.49,0.66]
[1765563492090,7.54603078,132.52,132.49,0.66]
[1765563492980,8.80994492,132.49,132.44,0.2]
[1765563493298,20.65686496,132.48,132.44,0.2]
[1765563493678,8.26,132.48,132.44,0.86]
[1765563493986,7.6270138,132.47,132.44,0.86]
[1765563494165,15.17636605,132.47,132.44,0.86]
[1765563494362,23.43546891,132.48,132.45,0.66]
[1765563494584,15.80845511,132.48,132.45,0.66]
[1765563495114,15.80716981,132.5,132.45,0.66]
[1765563495268,23.43418361,132.5,132.45,0.66]
[1765563495469,15.80716981,132.5,132.45,0.66]
[1765563495681,8.26,132.5,132.45,0.94432314]
[1765563496072,15.8076267,132.5,132.46,0.66]
[1765563496299,23.4346405,132.5,132.46,0.66]
[1765563496471,23.4346405,132.5,132.46,8.20940058]
[1765563496883,7.54709505,132.51,132.47,0.66]
[1765563497088,23.4331278,132.52,132.47,0.94432314]
[1765563497285,15.806114,132.52,132.47,0.94432314]
[1765563497485,23.4331278,132.52,132.48,0.66]
[1765563497767,7.546114,132.52,132.48,0.66]
[1765563497971,15.17265703,132.53,132.48,0.66]
[1765563498183,7.6270138,132.52,132.46,20.59649178]
[1765563498396,7.6270138,132.51,132.47,0.72]
[1765563498597,16.43695872,132.52,132.47,0.72]
[1765563498795,7.6270138,132.5,132.45,13.7670912]
[1765563499110,7.6270138,132.5,132.44,7.75020695]
[1765563499111,7.6270138,132.5,132.46,0.72]
[1765563499471,15.8870138,132.51,132.44,0.2]
[1765563499671,21.85703612,132.52,132.46,0.28432314]
[1765563499672,13.0470912,132.52,132.46,0.28432314]
[1765563499870,42.29631054,132.53,132.47,7.54851537]
[1765563500070,7.6270138,132.49,132.44,0.48432314]
[1765563500298,15.17532297,132.48,132.44,0.2]
[1765563500595,15.47532297,132.48,132.44,0.2]
[1765563501195,7.84830917,132.48,132.44,0.2]
[1765563501800,15.47532297,132.48,132.44,0.2]
[1765563502298,34.04609591,132.48,132.44,0.2]
[1765563502502,34.34609591,132.48,132.44,0.2]
[1765563503093,7.84830917,132.48,132.44,0.2]
[1765563503822,15.47532297,132.48,132.44,0.2]
[1765563504125,7.54830917,132.48,132.44,8.41056985]
[1765563504328,23.43496282,132.49,132.44,8.41056985]
[1765563504634,23.73496282,132.49,132.44,8.41056985]
[1765563504929,15.80794902,132.49,132.45,0.66]
[1765563505106,7.54794902,132.49,132.45,0.66]
[1765563505913,7.54794902,132.49,132.45,8.20951926]
[1765563506119,15.80734817,132.5,132.45,8.20951926]
[1765563506603,7.6270138,132.53,132.46,8.57133694]
[1765563506921,21.18069384,132.53,132.46,8.57133694]
[1765563507095,16.1254614,132.53,132.47,0.66]
[1765563507304,15.8254614,132.53,132.47,0.66]
[1765563507699,8.28,132.53,132.48,0.28432314]
[1765563507902,8.28,132.53,132.5,0.28432314]
[1765563507903,4.98295933,132.53,132.5,0.28432314]
[1765563508115,15.9070138,132.56,132.5,0.28432314]
[1765563508430,12.6105388,132.55,132.5,0.94432314]
[1765563508598,4.983525,132.54,132.5,0.28432314]
[1765563508915,4.983525,132.53,132.5,0.28432314]
[1765563509117,15.47141485,132.55,132.5,7.83116733]
[1765563509323,12.92190098,132.54,132.49,13.0470912]
[1765563509526,6.22805893,132.51,132.46,0.14216157]
[1765563509844,4.99488718,132.5,132.48,7.54821668]
[1765563510143,4.99488718,132.49,132.47,15.17589279]
[1765563510337,4.99488718,132.48,132.47,7.54887899]
[1765563510828,4.99488718,132.48,132.47,8.20887899]
[1765563511196,4.99488718,132.48,132.44,8.46]
[1765563511398,4.99488718,132.47,132.44,8.4870138]
[1765563511703,4.99488718,132.46,132.45,8.35215262]
[1765563511902,4.99488718,132.46,132.45,16.12132799]
[1765563512098,4.99488718,132.46,132.44,0.2]
[1765563512328,4.99488718,132.45,132.44,0.2]
[1765563512532,11.22294611,132.45,132.44,0.2]
[1765563512898,4.99488718,132.45,132.44,0.2]
[1765563514640,4.99488718,132.45,132.44,7.75058894]
[1765563515748,4.99488718,132.45,132.44,0.2]
[1765563516759,4.99488718,132.45,132.44,7.75058894]
[1765563517264,4.99488718,132.45,132.44,8.41058894]
[1765563518271,5.78805893,132.5,132.48,0.28432314]
[1765563518432,9.1168233,132.52,132.49,7.6270138]
[1765563518433,0.71,132.52,132.49,7.6270138]
[1765563519058,0.71,132.52,132.49,7.61763964]
[1765563519367,0.71,132.52,132.5,7.54716981]
[1765563519958,8.4068233,132.55,132.53,13.0470912]
[1765563520228,16.7212943,132.61,132.5,47.58301886]
[1765563520229,0.71,132.58,132.55,0.28432314]
[1765563520453,0.71,132.58,132.54,15.87763964]
[1765563521033,0.71,132.58,132.55,7.61763964]
[1765563521238,0.71,132.58,132.56,7.61763964]
[1765563521550,0.71,132.6,132.56,15.16139341]
[1765563521946,0.71,132.6,132.57,7.61763964]
[1765563522347,0.71,132.6,132.58,7.61763964]
[1765563522736,0.71,132.6,132.57,7.90196278]
[1765563522931,0.71,132.6,132.56,15.16139341]
[1765563523573,0.71,132.6,132.54,27.405931]
[1765563523574,8.25151929,132.6,132.55,15.16179105]
[1765563524048,0.71,132.59,132.56,7.54374101]
[1765563524435,0.71,132.59,132.55,15.16182423]
[1765563524635,0.71,132.59,132.54,8.26]
[1765563524852,16.58763964,132.59,132.54,8.26]
[1765563525243,0.71,132.58,132.54,8.26]
[1765563525444,0.71,132.58,132.54,15.80485913]
[1765563526039,0.71,132.58,132.54,23.42249877]
[1765563526832,0.71,132.58,132.55,7.61763964]
[1765563527036,0.71,132.58,132.54,23.42249877]
[1765563528371,96.85703612,132.62,132.54,23.42249877]
[1765563528372,0.71,132.6,132.57,7.61763964]
[1765563528539,0.71,132.61,132.56,7.61763964]
[1765563528739,16.42758456,132.6,132.54,15.80485913]
[1765563528938,16.42758456,132.6,132.54,23.42249877]
[1765563529139,0.71,132.59,132.54,23.42249877]
[1765563529375,24.13022189,132.59,132.54,7.54484219]
[1765563529766,0.71,132.58,132.54,7.54484219]
[1765563530151,5.04218789,132.57,132.54,15.16248183]
[1765563530374,0.71,132.58,132.54,15.16248183]
[1765563530575,5.75189622,132.58,132.55,7.61763964]
[1765563530945,5.70189622,132.57,132.54,7.54484219]
[1765563531166,0.66,132.57,132.54,7.54484219]
[1765563531479,0.66,132.57,132.54,15.16248183]
[1765563532039,13.24513683,132.57,132.52,7.54561582]
[1765563532270,13.24513683,132.57,132.53,7.54538359]
[1765563532473,0.66,132.56,132.53,7.54538359]
[1765563532854,0.66,132.56,132.54,7.54485477]
[1765563533171,0.66,132.56,132.54,15.16249441]
[1765563533558,0.66,132.56,132.54,23.42249441]
[1765563533852,0.66,132.6,132.55,7.61763964]
[1765563534082,0.66,132.59,132.56,7.54375377]
[1765563534243,5.70113845,132.59,132.54,15.80454957]
[1765563534444,13.31877809,132.59,132.54,15.80454957]
[1765563534750,13.31877809,132.58,132.54,8.26]
[1765563535068,0.66,132.58,132.54,8.26]
[1765563535365,0.66,132.57,132.54,8.26]
[1765563535774,0.66,132.57,132.53,15.16274401]
[1765563535972,7.54375377,132.56,132.51,15.87763964]
[1765563536153,20.2023012,132.56,132.51,8.26]
[1765563536352,0.66,132.55,132.51,23.42382699]
[1765563536572,0.66,132.55,132.51,15.80618735]
[1765563536876,0.66,132.55,132.51,23.42382699]
[1765563537250,0.66,132.55,132.51,15.80618735]
[1765563537450,8.20474666,132.55,132.51,15.80618735]
[1765563537688,15.8223863,132.55,132.49,7.61763964]
[1765563537874,15.8223863,132.55,132.49,7.54730759]
[1765563537875,0.66,132.54,132.49,7.54730759]
[1765563538173,5.70130149,132.54,132.49,15.16494723]
[1765563538374,5.70130149,132.54,132.49,7.54730759]
[1765563538568,8.27763964,132.53,132.48,15.80815954]
[1765563538773,13.31894113,132.53,132.48,15.80815954]
[1765563538959,0.66,132.52,132.48,8.26]
[1765563539279,0.66,132.52,132.44,7.75021448]
[1765563539280,7.61763964,132.5,132.44,7.75021448]
[1765563539482,13.0470912,132.47,132.44,0.2]
[1765563539782,21.47364516,132.46,132.44,0.2]
[1765563540073,13.85600552,132.45,132.44,0.2]
[1765563540282,14.51600552,132.45,132.44,0.2]
[1765563540979,22.13364516,132.45,132.44,0.2]
[1765563541144,30.39364516,132.45,132.44,0.2]
[1765563541548,37.94366403,132.45,132.44,0.2]
[1765563541977,13.0470912,132.43,132.42,0.2]
[1765563542174,29.47467576,132.41,132.4,0.2]
[1765563542374,29.47467576,132.41,132.34,0.2]
[1765563542375,8.80994492,132.4,132.34,0.2]
[1765563542580,42.78073636,132.41,132.34,0.2]
[1765563542581,7.61763964,132.35,132.34,0.2]
[1765563542785,29.73364516,132.35,132.34,0.2]
[1765563542962,13.9660606,132.35,132.34,0.2]
[1765563543292,0.66,132.38,132.34,0.2]
[1765563543451,0.66,132.37,132.34,0.2]
[1765563543648,0.66,132.38,132.34,7.7561926]
[1765563545290,16.42758456,132.37,132.34,0.2]
[1765563545458,16.42758456,132.35,132.32,0.2]
[1765563545783,15.17393403,132.34,132.32,0.2]
[1765563545985,0.66,132.33,132.32,0.2]
[1765563546152,24.6434195,132.35,132.32,0.2]
[1765563546353,23.9834195,132.35,132.32,0.2]
[1765563546584,15.83522923,132.36,132.32,0.2]
[1765563546784,0.66,132.35,132.32,0.2]
[1765563547180,0.66,132.35,132.32,7.75738163]
[1765563548283,8.28,132.36,132.32,7.75738163]
[1765563548580,8.28,132.37,132.32,15.97502127]
[1765563548882,0.28432314,132.42,132.35,7.61763964]
[1765563548883,0.66,132.41,132.35,7.61763964]
[1765563549179,8.94,132.41,132.35,7.61763964]
[1765563549385,16.55763964,132.41,132.34,7.90196278]
[1765563549589,24.11007786,132.41,132.35,7.55572346]
[1765563549754,23.45007786,132.41,132.35,7.55572346]
[1765563549956,0.66,132.4,132.35,7.55572346]
[1765563550567,7.61763964,132.38,132.32,0.2]
[1765563550791,7.61763964,132.37,132.32,7.75700338]
[1765563550993,0.66,132.37,132.33,7.55674018]
[1765563551684,7.55515261,132.36,132.32,7.75730415]
[1765563551860,8.2147563,132.37,132.32,7.75730415]
[1765563552061,0.66,132.36,132.32,7.75730415]
[1765563552460,8.27763964,132.36,132.32,0.2]
[1765563552676,8.80994492,132.33,132.32,0.2]
[1765563552867,7.61763964,132.34,132.32,0.2]
[1765563553194,8.80994492,132.32,132.3,0.2]
[1765563553368,7.61763964,132.31,132.3,0.2]
[1765563553569,24.64559226,132.31,132.3,0.2]
[1765563553781,8.80994492,132.3,132.26,0.2]
[1765563554012,29.52043774,132.29,132.26,0.2]
[1765563554177,35.18177636,132.29,132.26,0.2]
[1765563554376,123.22886756,132.29,132.26,0.2]
[1765563554594,13.0470912,132.27,132.26,0.2]
[1765563554793,30.47330942,132.27,132.26,0.2]
[1765563555100,31.13330942,132.27,132.26,0.2]
[1765563555278,18.7028166,132.27,132.26,0.2]
[1765563555469,114.94325434,132.27,132.26,0.2]
[1765563555674,122.50354767,132.27,132.26,0.2]
[1765563556193,122.78787081,132.27,132.26,0.2]
[1765563556781,122.79718917,132.27,132.26,0.2]
[1765563558800,122.51286603,132.27,132.26,0.2]
[1765563559316,110.07305485,132.27,132.26,0.2]
[1765563559490,12.43981118,132.29,132.26,0.2]
[1765563559698,13.09981118,132.29,132.26,0.2]
[1765563560085,12.43981118,132.29,132.26,0.89]
[1765563560283,21.2497561,132.3,132.26,8.45080329]
[1765563560624,20.64496379,132.36,132.29,0.28432314]
[1765563560823,12.43981118,132.34,132.27,12.43981118]
[1765563561009,21.2497561,132.34,132.28,0.69]
[1765563561477,13.08981118,132.35,132.28,13.12981118]
[1765563561880,0.65,132.35,132.29,13.41413432]
[1765563562279,8.20577714,132.35,132.3,8.24857898]
[1765563562509,0.65,132.35,132.3,8.24857898]
[1765563562711,19.99587687,132.35,132.3,8.24857898]
[1765563562884,0.7,132.34,132.3,7.55857898]
[1765563563200,20.69587687,132.35,132.3,8.24857898]
[1765563563411,21.9497561,132.34,132.29,7.5589699]
[1765563564191,7.55686541,132.33,132.28,7.5597218]
[1765563564401,7.55686541,132.33,132.28,8.2497218]
[1765563564595,7.55686541,132.33,132.29,0.69]
[1765563564993,8.28,132.36,132.3,12.43981118]
[1765563565193,17.08994492,132.36,132.3,12.43981118]
[1765563565418,30.2297561,132.36,132.29,13.41413432]
[1765563565591,12.43981118,132.34,132.29,0.69]
[1765563565785,13.13981118,132.34,132.29,0.69]
[1765563565984,0.7,132.34,132.29,0.69]
[1765563566302,116.73981118,132.35,132.29,0.69]
[1765563566806,7.55629439,132.34,132.29,8.2486346]
[1765563567511,7.55629439,132.34,132.3,0.69]
[1765563567712,8.25629439,132.34,132.3,0.69]
[1765563568011,8.25629439,132.34,132.3,8.24853295]
[1765563568207,8.25629439,132.34,132.3,7.55853295]
[1765563568715,104.3,132.39,132.33,12.43981118]
[1765563569208,112.55384356,132.39,132.33,13.12981118]
[1765563569593,124.99365474,132.39,132.33,0.69]
[1765563570107,124.99365474,132.39,132.34,7.55629439]
[1765563570313,26.91438483,132.38,132.31,13.12981118]
[1765563570489,26.91438483,132.38,132.32,8.24728441]
[1765563570490,21.9497561,132.38,132.32,8.24728441]
[1765563570814,21.9497561,132.38,132.33,7.55681582]
[1765563571202,0.7,132.37,132.33,7.55681582]
[1765563571415,21.2497561,132.38,132.33,8.24681582]